bitfinex-derivatives/quotes_ETHF0:USTF0_20260306
["timestamp","ask_amount","ask_price","bid_price","bid_amount"]
[1772808441786,7.149,1981.5,1979.5,6.84393749]
[1772808441787,6.76547657,1980.5,1979.5,6.84393749]
[1772808442089,0.25254,1980.0,1979.5,6.84393749]
[1772808442290,0.25246,1980.6,1979.5,6.84393749]
[1772808442494,7.145,1981.3,1979.5,6.84393749]
[1772808442495,0.25241,1981.0,1979.5,6.84393749]
[1772808442694,6.51300657,1980.7,1979.5,6.84393749]
[1772808442896,6.51300657,1980.4,1979.5,6.84994966]
[1772808443293,6.51300657,1980.4,1979.6,1.83003035]
[1772808443486,0.25253,1980.1,1979.7,6.84393749]
[1772808443995,0.25253,1980.1,1979.5,0.00601217]
[1772808444186,0.25253,1980.1,1979.5,6.84994966]
[1772808444385,6.76553657,1980.1,1979.5,0.00601217]
[1772808444895,6.76553657,1980.1,1978.4,18.25368032]
[1772808444896,0.25258,1979.6,1978.9,6.84393749]
[1772808445097,5.75395622,1980.0,1978.9,6.84393749]
[1772808445391,0.2524,1981.1,1979.5,7.09653749]
[1772808445595,0.2524,1981.1,1979.8,6.84393749]
[1772808445796,0.25834233,1981.1,1979.8,6.84950664]
[1772808445995,0.25834233,1981.1,1980.2,8.67396784]
[1772808446192,0.25834233,1981.1,1980.2,6.84393749]
[1772808446490,0.25246,1980.7,1980.2,6.84393749]
[1772808446689,0.25238,1981.3,1980.5,6.84393749]
[1772808446890,6.51300657,1982.1,1980.5,6.84393749]
[1772808447089,6.51300657,1982.1,1980.4,3.64294032]
[1772808447090,0.25228,1982.0,1980.6,6.84393749]
[1772808447486,6.51300657,1982.7,1981.5,6.84393749]
[1772808447693,0.2522,1982.6,1981.5,6.84393749]
[1772808447890,0.25227,1982.1,1981.5,6.84856419]
[1772808448099,0.00361863,1982.7,1981.8,6.84393749]
[1772808448493,0.25227,1982.1,1981.8,6.84393749]
[1772808448690,0.25227,1982.1,1981.5,0.0046267]
[1772808448894,0.25227,1982.1,1981.5,6.84856419]
[1772808449193,0.25581863,1982.7,1982.1,6.84393749]
[1772808449589,6.7688252,1982.7,1981.7,6.84393749]
[1772808449896,0.25581863,1982.7,1981.7,6.84393749]
[1772808450099,0.18636863,1982.7,1982.4,6.84393749]
[1772808450299,0.18636863,1982.7,1981.6,6.84393749]
[1772808450498,0.18636863,1982.7,1982.3,6.84393749]
[1772808450799,6.51300657,1983.3,1982.3,6.84393749]
[1772808451098,0.25213,1983.2,1982.6,6.84393749]
[1772808451294,0.25213,1983.2,1982.3,6.84393749]
[1772808451295,6.76513657,1983.2,1982.3,6.84393749]
[1772808451493,0.2522,1982.7,1981.9,1.83003035]
[1772808451700,0.25237,1981.3,1980.6,8.85031475]
[1772808451902,8.93972306,1981.9,1980.6,8.85031475]
[1772808452099,0.25237,1981.4,1980.6,8.85031475]
[1772808452398,0.2523,1981.8,1980.6,8.85031475]
[1772808452596,0.25884113,1981.8,1980.6,8.85489068]
[1772808453798,0.25237,1981.3,1980.6,8.85489068]
[1772808453994,0.00654113,1981.8,1980.6,8.85489068]
[1772808454502,8.93972306,1982.4,1980.8,3.64294032]
[1772808454703,0.25211,1983.3,1981.5,8.85031475]
[1772808454900,0.25204,1983.9,1982.1,8.85031475]
[1772808455093,0.25204,1983.9,1982.4,8.85031475]
[1772808455499,8.93972306,1984.6,1982.8,3.64294032]
[1772808455699,8.93972306,1984.6,1982.9,8.85031475]
[1772808455700,0.25203,1984.0,1982.9,8.85031475]
[1772808455893,8.93972306,1984.6,1983.0,8.85031475]
[1772808456097,0.25203,1984.0,1983.0,8.85031475]
[1772808456603,8.93972306,1984.6,1983.0,8.85031475]
[1772808456604,0.25195,1984.6,1983.0,8.85031475]
[1772808457100,0.25202,1984.1,1983.0,8.85031475]
[1772808457705,0.25707233,1984.1,1983.0,8.85031475]
[1772808457901,8.93972306,1984.7,1983.0,8.85031475]
[1772808458104,0.25202,1984.1,1983.0,8.85031475]
[1772808458302,9.19174306,1984.1,1983.0,8.85031475]
[1772808458504,5.46530253,1984.6,1982.4,0.00440869]
[1772808458505,0.25215,1983.1,1982.7,8.85031475]
[1772808458705,0.25215,1983.1,1982.4,0.00440869]
[1772808458914,0.25215,1983.1,1982.4,8.60518722]
[1772808459411,0.25215,1983.1,1981.4,14.604]
[1772808459412,9.19187306,1983.1,1981.8,8.85031475]
[1772808459614,0.25221,1982.6,1981.8,8.85031475]
[1772808459808,0.25803394,1982.6,1981.8,8.85415007]
[1772808460015,8.93972306,1984.1,1981.8,8.85415007]
[1772808460214,0.25217,1982.9,1981.8,8.85415007]
[1772808460516,0.25209,1983.6,1982.0,8.85031475]
[1772808460715,0.25214,1983.1,1982.0,8.85031475]
[1772808460912,0.25643239,1983.1,1982.0,8.85031475]
[1772808461108,0.00429239,1983.1,1982.0,8.85031475]
[1772808461307,9.19179306,1983.7,1982.0,8.85031475]
[1772808461519,0.2522,1982.7,1982.0,8.85031475]
[1772808462009,0.2522,1982.7,1981.8,8.85415007]
[1772808462215,0.25744801,1982.7,1981.8,8.85415007]
[1772808462411,0.25213,1983.2,1981.8,8.85415007]
[1772808462810,0.25218,1982.8,1981.8,8.85415007]
[1772808463420,0.25778496,1982.8,1981.8,8.85415007]
[1772808464014,8.93972306,1984.1,1981.8,8.85415007]
[1772808464419,8.93972306,1983.9,1981.8,8.85415007]
[1772808464614,8.93972306,1983.4,1981.8,8.85415007]
[1772808464820,0.25216,1982.9,1981.8,8.85415007]
[1772808465021,0.25641384,1982.9,1981.8,8.85415007]
[1772808465217,0.25223,1982.5,1981.8,8.85415007]
[1772808465418,0.00425384,1982.9,1981.8,8.85415007]
[1772808466018,0.25215,1983.1,1981.8,8.85415007]
[1772808466818,8.93972306,1983.5,1981.8,8.85415007]
[1772808467020,0.00548205,1983.5,1981.9,5.78592414]
[1772808467323,0.00548205,1983.5,1982.0,8.85031475]
[1772808467324,0.2521,1983.4,1982.0,8.85031475]
[1772808467522,9.19182306,1983.4,1982.1,8.85031475]
[1772808467718,0.25217,1982.9,1982.1,8.85031475]
[1772808467927,9.19189306,1982.9,1982.1,8.85031475]
[1772808468122,0.25223,1982.4,1981.8,8.85415007]
[1772808468420,0.25223,1982.4,1981.8,0.00383532]
[1772808468620,9.19195306,1982.4,1981.5,8.85031475]
[1772808469624,0.25223,1982.4,1981.5,8.8558687]
[1772808470121,0.25215,1983.0,1981.5,8.8558687]
[1772808470325,8.93972306,1983.4,1981.5,8.8558687]
[1772808470527,8.93972306,1983.4,1981.7,8.85031475]
[1772808470723,8.93972306,1983.4,1981.6,5.66852001]
[1772808470724,0.00548205,1983.5,1981.9,8.85031475]
[1772808471222,0.25199,1984.3,1982.1,9.10257475]
[1772808471427,9.19171306,1984.3,1982.1,9.10257475]
[1772808471617,9.19164306,1984.9,1982.5,0.25221]
[1772808471816,9.19164306,1984.9,1982.8,8.85031475]
[1772808472024,0.25198,1984.4,1983.0,8.85031475]
[1772808472219,0.25829011,1984.4,1983.0,8.85659534]
[1772808472928,9.19801317,1984.4,1983.0,8.85659534]
[1772808473529,0.25829011,1984.4,1983.0,8.85659534]
[1772808473925,0.25829011,1984.4,1983.2,8.85031475]
[1772808475320,9.2034165,1984.4,1983.2,8.85031475]
[1772808475524,0.25204,1983.9,1983.2,8.85031475]
[1772808476227,0.25199,1984.3,1983.2,8.85031475]
[1772808476422,9.44909639,1984.3,1983.2,8.85031475]
[1772808476627,0.25199,1984.3,1983.2,8.85031475]
[1772808477528,0.00631011,1984.4,1983.2,8.85031475]
[1772808477929,0.25199,1984.3,1983.2,8.85031475]
[1772808478626,0.25205,1983.9,1983.2,8.85031475]
[1772808479032,0.25203,1984.0,1983.2,8.85031475]
[1772808479332,9.44919639,1983.5,1983.0,0.00628059]
[1772808479632,9.44919639,1983.5,1982.4,9.12010158]
[1772808479832,0.25215,1983.1,1982.4,9.12010158]
[1772808480226,9.19710639,1983.8,1982.4,9.12010158]
[1772808480423,0.25212,1983.3,1982.4,9.12603855]
[1772808480732,0.25205,1983.8,1982.4,9.12603855]
[1772808481032,0.25211,1983.4,1982.5,9.12010158]
[1772808481226,0.25204,1983.9,1982.5,9.12010158]
[1772808481432,0.25204,1983.9,1982.4,14.61193697]
[1772808481433,0.25204,1983.9,1982.7,9.12010158]
[1772808481934,0.25829011,1984.4,1982.9,8.81121179]
[1772808482129,0.25829011,1984.4,1983.1,8.81121179]
[1772808482325,8.75251339,1984.4,1983.1,8.81121179]
[1772808482530,0.25829011,1984.4,1983.2,8.81121179]
[1772808482836,0.25203,1984.0,1983.2,8.81121179]
[1772808483137,0.25212,1983.3,1982.9,8.81121179]
[1772808483337,0.25212,1983.3,1982.5,8.81121179]
[1772808483738,0.25217,1982.9,1982.5,8.81121179]
[1772808483938,0.25856565,1982.9,1982.5,8.81121179]
[1772808484637,8.49422328,1984.4,1982.5,8.81121179]
[1772808484835,7.053,1984.5,1982.5,8.81121179]
[1772808484836,0.25209,1983.6,1982.5,8.81121179]
[1772808485036,0.25214,1983.2,1982.5,8.81121179]
[1772808485637,0.00506107,1983.2,1982.5,8.81121179]
[1772808485939,0.25205,1983.9,1982.7,8.81121179]
[1772808486144,0.25205,1983.9,1982.9,8.81121179]
[1772808486438,0.25213,1983.2,1982.5,8.81121179]
[1772808486636,0.25218,1982.8,1982.5,8.81121179]
[1772808487031,0.25218,1982.8,1982.4,0.00593697]
[1772808487032,0.25804374,1982.8,1982.4,0.00593697]
[1772808487340,0.25804374,1982.8,1982.2,8.81121179]
[1772808487341,0.25223,1982.4,1982.2,8.81121179]
[1772808487635,0.00586374,1982.8,1981.9,8.81121179]
[1772808487936,8.49422328,1984.8,1982.5,8.81121179]
[1772808488139,8.74623328,1984.1,1982.7,8.81121179]
[1772808488337,0.25208,1983.6,1982.7,8.81121179]
[1772808488642,0.25214,1983.1,1982.7,8.81121179]
[1772808488832,0.25214,1983.1,1982.7,0.00612719]
[1772808489033,0.25221,1982.6,1982.3,8.81121179]
[1772808489337,0.25221,1982.6,1981.8,8.81121179]
[1772808490038,0.25221,1982.6,1981.8,8.81658466]
[1772808491035,0.25214,1983.2,1982.0,8.81121179]
[1772808491239,8.74627328,1983.8,1982.2,8.81121179]
[1772808491435,8.74627328,1983.8,1982.1,14.596]
[1772808491436,0.25205,1983.8,1982.4,19.16050648]
[1772808491637,8.74627328,1983.8,1982.8,7.86139044]
[1772808491838,8.74627328,1983.8,1982.7,7.86139044]
[1772808491839,0.25212,1983.3,1982.7,7.86139044]
[1772808492142,0.25221,1982.6,1982.3,8.81121179]
[1772808492343,8.49422328,1983.2,1982.3,8.81121179]
[1772808492637,0.25213,1983.2,1982.3,8.81121179]
[1772808492838,0.2522,1982.7,1982.0,8.81121179]
[1772808493443,0.00364377,1983.3,1982.0,8.81121179]
[1772808493637,0.25576377,1983.3,1982.2,8.81121179]
[1772808493937,0.25205,1983.9,1982.7,8.81121179]
[1772808494140,0.25205,1983.9,1982.7,19.16050648]
[1772808494335,0.25205,1983.9,1982.8,8.81121179]
[1772808494736,0.2521,1983.4,1982.8,8.81121179]
[1772808495743,0.2521,1983.4,1982.5,8.81121179]
[1772808496037,0.25217,1982.9,1982.5,8.81121179]
[1772808496437,0.25217,1982.9,1982.0,8.81121179]
[1772808496637,8.49949147,1983.9,1982.0,8.81121179]
[1772808496837,0.25215,1983.0,1982.2,8.81121179]
[1772808497848,0.25222,1982.5,1982.2,8.81121179]
[1772808498046,0.25829274,1982.5,1982.2,8.81121179]
[1772808498442,8.49422328,1983.1,1982.2,8.81121179]
[1772808498840,0.25222,1982.5,1982.2,8.81121179]
[1772808499045,8.49422328,1983.1,1982.2,8.81121179]
[1772808499046,0.25218,1982.9,1982.2,8.81121179]
[1772808499241,8.74640328,1982.9,1981.8,8.81658466]
[1772808499440,8.75044217,1982.9,1981.8,8.81658466]
[1772808499647,0.25621889,1982.9,1981.8,8.81658466]
[1772808499838,8.75044217,1982.9,1981.8,8.81658466]
[1772808500148,0.25621889,1982.9,1981.8,8.81658466]
[1772808500347,0.25621889,1982.9,1981.8,19.16587935]
[1772808500551,0.25621889,1982.9,1981.9,19.16050648]
[1772808500845,8.49422328,1983.6,1982.2,8.81121179]
[1772808501044,0.25216,1983.0,1982.4,8.81121179]
[1772808501844,0.25826043,1983.0,1982.4,8.81121179]
[1772808502141,8.50032371,1983.0,1981.9,10.34929469]
[1772808502347,0.25222,1982.5,1981.9,8.81121179]
[1772808502942,8.49422328,1982.8,1981.8,0.00537287]
[1772808502943,0.25227,1982.1,1981.8,0.00537287]
[1772808503154,0.25227,1982.1,1981.6,8.81121179]
[1772808503449,0.25226,1982.2,1981.6,8.81121179]
[1772808503642,0.25231,1981.8,1981.6,8.81121179]
[1772808503839,0.25231,1981.8,1981.2,8.81121179]
[1772808504039,0.25231,1981.8,1981.2,0.0035466]
[1772808504242,0.25231,1981.8,1981.2,8.81475839]
[1772808504646,8.49422328,1982.3,1981.2,8.81475839]
[1772808505247,0.25231,1981.8,1981.2,8.81475839]
[1772808505448,8.49422328,1982.4,1981.2,8.81475839]
[1772808505645,0.25224,1982.3,1981.2,8.81475839]
[1772808505844,8.50032371,1983.0,1981.4,8.81121179]
[1772808506046,8.50032371,1983.0,1981.3,10.34929469]
[1772808506047,0.25222,1982.5,1981.6,8.81121179]
[1772808506443,8.49422328,1982.6,1981.6,8.81121179]
[1772808506649,7.01510043,1983.0,1981.5,23.42521179]
[1772808506650,0.25229,1982.0,1981.5,23.42521179]
[1772808507050,0.25222,1982.5,1981.6,8.81121179]
[1772808507249,8.74644328,1982.5,1981.6,8.81121179]
[1772808507454,0.25233,1981.7,1981.2,8.81475839]
[1772808507747,8.74655328,1981.7,1980.9,8.81121179]
[1772808508644,8.49422328,1982.0,1980.9,8.81121179]
[1772808508844,8.49422328,1982.0,1980.9,8.81725882]
[1772808509044,0.25229,1981.9,1980.9,8.81725882]
[1772808509246,0.25229,1981.9,1981.1,8.81121179]
[1772808509447,0.25222,1982.5,1981.3,8.81121179]
[1772808509648,7.005,1983.1,1981.3,8.81121179]
[1772808509649,8.49422328,1982.7,1981.4,8.81121179]
[1772808509848,0.25226,1982.2,1981.4,8.81121179]
[1772808510056,5.52157525,1982.9,1981.4,8.81121179]
[1772808510244,0.25219,1982.7,1981.5,8.81121179]
[1772808510550,8.49422328,1983.4,1982.0,8.81121179]
[1772808510756,0.25216,1982.9,1982.2,8.81121179]
[1772808511951,8.98724709,1984.1,1982.5,9.30017844]
[1772808512141,6.19772,1984.7,1982.5,9.30017844]
[1772808512142,8.98724709,1983.9,1982.5,9.30017844]
[1772808512342,0.2521,1983.4,1982.5,17.16295486]
[1772808512543,0.25216,1983.0,1982.5,17.16295486]
[1772808512750,0.25221,1982.6,1982.3,9.30017844]
[1772808513047,0.23348011,1982.2,1981.8,17.16295486]
[1772808513253,0.23348011,1982.2,1981.8,9.30017844]
[1772808514154,0.23348011,1982.2,1981.8,0.00407858]
[1772808514350,9.2207272,1982.2,1981.8,0.00407858]
[1772808514554,0.24826142,1981.6,1981.2,17.16295486]
[1772808514749,0.24826142,1981.6,1980.8,14.637]
[1772808514750,0.24826142,1981.6,1981.0,7.86277642]
[1772808514946,0.24826142,1981.6,1980.9,7.86277642]
[1772808515151,0.24826142,1981.6,1980.8,31.79995486]
[1772808515653,0.24826142,1981.6,1980.9,17.16295486]
[1772808515853,0.00470371,1982.6,1981.1,9.30017844]
[1772808515854,8.98724709,1982.3,1981.1,9.30017844]
[1772808516148,0.25225,1982.2,1981.4,17.16295486]
[1772808516354,0.25225,1982.2,1981.4,9.30017844]
[1772808516554,0.25232,1981.7,1981.2,17.16295486]
[1772808516754,0.25232,1981.7,1981.3,9.30017844]
[1772808516958,0.25232,1981.7,1981.2,9.30017844]
[1772808517154,0.25232,1981.7,1981.0,7.86277642]
[1772808517352,0.25232,1981.7,1981.0,17.16295486]
[1772808517549,0.25232,1981.7,1980.9,7.86277642]
[1772808517955,0.25232,1981.7,1980.9,17.16295486]
[1772808518151,0.25238,1981.3,1980.9,7.86277642]
[1772808518462,0.25238,1981.3,1980.8,0.00653562]
[1772808518650,0.25238,1981.3,1980.5,9.30017844]
[1772808518852,0.25238,1981.3,1980.5,17.16295486]
[1772808519055,0.2523,1981.8,1980.9,9.30017844]
[1772808519251,0.25236,1981.4,1980.8,7.86277642]
[1772808519451,0.25236,1981.4,1980.8,9.30017844]
[1772808519662,0.25236,1981.4,1980.9,9.30017844]
[1772808519862,0.33959653,1982.6,1980.9,9.30017844]
[1772808519863,8.98724709,1982.1,1980.9,9.30017844]
[1772808520163,0.25246,1980.6,1979.9,24.78599339]
[1772808520354,0.25246,1980.6,1980.0,15.48581495]
[1772808520554,0.25246,1980.6,1980.1,9.30017844]
[1772808521059,0.25239,1981.1,1980.3,9.30017844]
[1772808521460,8.98724709,1981.7,1980.5,9.30017844]
[1772808521461,0.25233,1981.7,1980.5,9.30017844]
[1772808521758,0.2523,1981.9,1980.7,9.30017844]
[1772808521959,0.25224,1982.3,1980.9,9.30017844]
[1772808522457,9.23948709,1982.3,1981.1,9.30017844]
[1772808522662,0.25224,1982.3,1981.3,9.30017844]
[1772808522854,0.25224,1982.3,1980.8,15.48581495]
[1772808522855,0.25224,1982.3,1981.5,9.30017844]
[1772808523061,0.25224,1982.3,1981.7,9.30017844]
[1772808523262,0.00465274,1982.3,1981.5,9.30561125]
[1772808523460,0.2523,1981.8,1981.5,9.30620238]
[1772808523757,0.25232,1981.7,1981.6,15.48581495]
[1772808523953,0.25689274,1982.3,1981.7,9.30017844]
[1772808524165,8.98724709,1982.9,1981.9,9.30017844]
[1772808524464,0.25218,1982.8,1981.9,9.30017844]
[1772808524662,5.53695979,1983.3,1982.1,9.30017844]
[1772808524857,0.25211,1983.4,1982.3,9.30017844]
[1772808525163,0.25211,1983.4,1982.5,9.30017844]
[1772808525363,0.25758597,1983.4,1982.5,9.30017844]
[1772808525659,0.25217,1982.9,1982.6,15.48581495]
[1772808525860,0.25217,1982.9,1982.4,15.0]
[1772808526161,0.25217,1982.9,1982.4,24.78599339]
[1772808526359,0.25223,1982.4,1981.8,9.30017844]
[1772808526858,0.25223,1982.4,1981.9,14.38985649]
[1772808526859,9.23947709,1982.4,1981.9,14.38985649]
[1772808527362,8.98724709,1983.1,1982.0,9.78599339]
[1772808527561,0.25222,1982.5,1982.0,0.48581495]
[1772808527967,9.23946709,1982.5,1981.7,9.30017844]
[1772808528158,9.23946709,1982.5,1981.8,14.87567144]
[1772808528361,0.25228,1982.0,1981.8,14.87567144]
[1772808528555,8.98724709,1982.5,1981.8,14.87567144]
[1772808528760,0.25224,1982.4,1981.8,24.17584988]
[1772808528962,0.25224,1982.4,1981.3,14.697]
[1772808528963,0.25224,1982.4,1981.5,9.30620238]
[1772808529158,0.25224,1982.4,1981.7,9.30017844]
[1772808529665,0.258495,1982.4,1981.8,24.17584988]
[1772808529857,0.258495,1982.4,1981.8,9.30017844]
[1772808530056,0.258495,1982.4,1982.0,9.30017844]
[1772808530260,0.258495,1982.4,1981.7,9.30017844]
[1772808530457,0.258495,1982.4,1981.8,14.705]
[1772808530763,0.25216,1982.9,1981.9,9.30017844]
[1772808530962,0.2521,1983.4,1982.0,9.30017844]
[1772808531561,0.25762285,1983.4,1982.0,9.30017844]
[1772808531870,0.25216,1983.0,1982.2,9.30017844]
[1772808532162,0.25221,1982.6,1981.9,9.30017844]
[1772808532358,0.25221,1982.6,1982.0,9.30017844]
[1772808532966,9.23945709,1982.6,1981.8,9.30017844]
[1772808533163,0.25221,1982.6,1982.1,9.30017844]
[1772808533364,0.00552285,1983.4,1982.1,9.30017844]
[1772808533365,0.25214,1983.1,1982.2,9.30017844]
[1772808533568,0.25214,1983.1,1982.3,9.30017844]
[1772808534075,9.23938709,1983.1,1982.4,14.38985649]
[1772808534274,9.23938709,1983.1,1982.3,9.30017844]
[1772808534469,0.25221,1982.6,1982.2,14.38985649]
[1772808534767,8.99276994,1983.4,1982.3,24.02317844]
[1772808534968,0.25211,1983.3,1982.4,9.30017844]
[1772808535174,0.25211,1983.3,1982.5,10.87151761]
[1772808535367,0.00552285,1983.4,1982.5,10.87151761]
[1772808535669,10.87799184,1983.8,1982.7,10.87151761]
[1772808535873,0.25212,1983.3,1982.7,10.87151761]
[1772808536069,0.25217,1982.9,1982.7,14.38985649]
[1772808536377,0.25217,1982.9,1982.3,14.723]
[1772808536568,0.25640104,1982.9,1982.5,14.38985649]
[1772808537074,10.87799184,1983.6,1982.6,10.87151761]
[1772808537377,11.13008184,1983.5,1982.6,10.87151761]
[1772808537566,11.13008184,1983.5,1982.7,25.2613741]
[1772808537762,0.25214,1983.1,1982.7,10.87151761]
[1772808537965,0.2522,1982.7,1982.3,10.87151761]
[1772808538164,0.25742496,1982.7,1982.4,10.87151761]
[1772808538464,10.87799184,1983.5,1982.6,10.87151761]
[1772808538668,0.25213,1983.2,1982.6,10.87151761]
[1772808538863,0.25223,1982.4,1982.2,10.87151761]
[1772808539068,0.25221,1982.6,1982.3,25.2613741]
[1772808539374,0.25217,1982.9,1982.4,10.87151761]
[1772808539575,17.83599184,1983.7,1982.4,10.87151761]
[1772808539773,10.87799184,1983.6,1982.6,10.87151761]
[1772808539990,17.83499184,1983.7,1982.8,10.87151761]
[1772808540177,0.25212,1983.3,1982.8,10.87151761]
[1772808540373,10.87799184,1983.8,1983.0,10.87151761]
[1772808540672,10.87799184,1984.1,1983.1,14.38985649]
[1772808540868,10.87799184,1983.9,1983.1,14.38985649]
[1772808541066,0.25214,1983.1,1982.6,10.87151761]
[1772808541267,12.24200475,1983.8,1982.3,10.87151761]
[1772808541467,10.87799184,1983.6,1982.4,10.87151761]
[1772808541668,0.25216,1983.0,1982.4,10.87151761]
[1772808541871,23.32702321,1983.7,1982.6,9.98180844]
[1772808542070,0.25207,1983.6,1982.8,9.98180844]
[1772808542271,10.72369869,1984.6,1983.0,9.98180844]
[1772808542472,10.72369869,1984.6,1983.2,9.98180844]
[1772808542677,10.72369869,1984.6,1983.4,9.98180844]
[1772808542678,0.25195,1984.6,1983.4,9.98180844]
[1772808542876,0.25195,1984.6,1983.0,3.91595007]
[1772808542877,0.25195,1984.6,1983.6,9.98180844]
[1772808543073,10.72369869,1985.0,1983.8,9.98180844]
[1772808543268,0.25198,1984.4,1983.7,9.98180844]
[1772808543473,0.25578182,1984.4,1983.9,9.98180844]
[1772808543874,0.25578182,1984.4,1983.8,14.20319312]
[1772808543875,0.25204,1983.9,1983.8,14.20319312]
[1772808544068,10.72369869,1984.3,1983.3,9.98180844]
[1772808544278,10.72750051,1984.4,1983.3,9.98180844]
[1772808544473,10.72750051,1984.4,1983.5,9.98180844]
[1772808544670,0.25199,1984.3,1983.7,9.98180844]
[1772808545077,10.97568869,1984.3,1983.8,13.80801487]
[1772808545282,10.97574869,1983.9,1983.2,14.772]
[1772808545580,0.25205,1983.9,1983.5,13.80801487]
[1772808545875,0.25205,1983.9,1983.5,23.78982331]
[1772808546068,0.25211,1983.4,1982.8,9.98180844]
[1772808546277,0.25216,1983.0,1982.8,0.00461824]
[1772808546475,0.25712344,1983.0,1982.5,9.74544377]
[1772808546774,0.25712344,1983.0,1982.2,9.98180844]
[1772808546775,0.25222,1982.5,1982.2,9.98180844]
[1772808547279,0.00496344,1983.0,1982.3,23.03961342]
[1772808547470,0.25209,1983.5,1982.5,9.98180844]
[1772808547677,0.25209,1983.5,1982.7,9.98180844]
[1772808548088,0.25209,1983.5,1982.9,9.98180844]
[1772808548378,0.25209,1983.5,1982.6,9.98180844]
[1772808548581,0.25612447,1983.5,1982.6,9.98180844]
[1772808548774,0.25612447,1983.5,1982.8,9.98180844]
[1772808549181,10.72369869,1984.0,1983.0,9.98180844]
[1772808549474,0.2521,1983.5,1982.7,9.98180844]
[1772808549678,10.97579869,1983.5,1982.7,9.98180844]
[1772808549872,0.25215,1983.1,1982.8,13.05780498]
[1772808550073,0.25215,1983.1,1982.3,0.00395354]
[1772808550074,0.25215,1983.1,1982.5,23.03961342]
[1772808550385,10.72369869,1983.8,1982.6,9.98180844]
[1772808550577,0.25207,1983.7,1982.8,9.98180844]
[1772808550978,0.25212,1983.3,1982.9,13.05780498]
[1772808551174,0.25218,1982.9,1982.3,0.00395354]
[1772808551380,10.98234017,1982.9,1982.3,0.00395354]
[1772808551583,0.25222,1982.5,1982.3,0.00395354]
[1772808552174,0.2522,1982.6,1981.6,9.98180844]
[1772808552574,0.25226,1982.2,1981.6,9.98180844]
[1772808552780,0.25226,1982.2,1981.2,14.807]
[1772808552979,0.25226,1982.2,1981.3,9.98180844]
[1772808553382,0.25219,1982.7,1981.3,9.98180844]
[1772808553784,10.97588869,1982.7,1981.3,9.98180844]
[1772808554285,10.97594869,1982.3,1981.3,9.98180844]
[1772808554485,0.2523,1981.8,1981.3,9.98180844]
[1772808554686,10.97606869,1981.4,1980.7,9.98180844]
[1772808554876,0.25237,1981.4,1980.7,9.98180844]
[1772808555185,6.040182,1982.0,1980.7,9.98180844]
[1772808555382,10.97597869,1982.0,1980.7,9.98180844]
[1772808555884,10.98187561,1982.0,1980.7,9.98600933]
[1772808557278,0.25817692,1982.0,1980.7,9.98600933]
[1772808557685,10.97590869,1982.6,1981.0,9.98180844]
[1772808557881,0.25221,1982.6,1981.2,9.98180844]
[1772808558083,10.97590869,1982.6,1981.2,9.98180844]
[1772808558482,0.25226,1982.2,1981.4,9.98180844]
[1772808558886,0.25618126,1982.2,1981.4,9.98180844]
[1772808559482,17.68069869,1982.9,1981.4,9.98180844]
[1772808559681,10.72369869,1982.9,1981.4,9.98180844]
[1772808560189,10.97594869,1982.3,1981.4,9.98180844]
[1772808560385,5.84001358,1982.8,1981.4,9.98180844]
[1772808560589,0.25224,1982.3,1981.4,9.98180844]
[1772808561580,0.25231,1981.8,1981.4,9.98180844]
[1772808561785,0.00591805,1982.3,1981.4,9.98180844]
[1772808561986,0.25816805,1982.3,1981.4,9.98180844]
[1772808562990,0.2523,1981.9,1981.4,9.98180844]
[1772808565490,0.00591805,1982.3,1981.4,9.98180844]
[1772808565692,10.72369869,1983.1,1981.5,9.98180844]
[1772808565990,0.25216,1983.0,1981.7,9.98180844]
[1772808566194,0.25216,1983.0,1981.9,9.98180844]
[1772808566195,0.25221,1982.6,1981.9,9.98180844]
[1772808566586,10.72369869,1983.2,1981.9,9.98180844]
[1772808567093,0.25218,1982.8,1981.9,9.98180844]
[1772808567288,10.72369869,1983.3,1981.9,9.98180844]
[1772808567486,0.25214,1983.1,1982.0,9.98180844]
[1772808567691,0.25208,1983.6,1982.2,9.98180844]
[1772808567892,10.97577869,1983.6,1982.4,9.98180844]
[1772808568095,0.25214,1983.1,1982.4,9.98180844]
[1772808568694,0.25669766,1983.1,1982.4,9.98705748]
[1772808568894,10.72369869,1983.6,1982.4,9.98705748]
[1772808569092,10.97577869,1983.6,1982.4,9.98705748]
[1772808569389,0.25213,1983.2,1982.4,9.98705748]
[1772808569794,0.25207,1983.7,1982.4,9.98705748]
[1772808570095,10.98179603,1983.7,1982.4,9.98705748]
[1772808570799,0.25212,1983.3,1982.5,24.82880844]
[1772808570996,0.00602734,1983.7,1982.5,24.82880844]
[1772808570997,10.97585869,1983.0,1982.5,14.847]
[1772808571191,0.25216,1983.0,1982.6,9.98180844]
[1772808571387,0.25221,1982.6,1982.4,0.00524904]
[1772808571593,0.25221,1982.6,1982.0,9.98180844]
[1772808571793,0.25221,1982.6,1982.1,11.20140562]
[1772808572091,10.29564722,1983.6,1982.1,11.20140562]
[1772808572490,0.00602734,1983.7,1982.1,11.20140562]
[1772808572696,10.30167456,1983.7,1982.1,11.20655463]
[1772808572893,0.25213,1983.2,1982.1,11.20655463]
[1772808573698,0.25809734,1983.7,1982.1,11.20655463]
[1772808573899,0.25212,1983.3,1982.1,11.20655463]
[1772808574095,10.54776722,1983.3,1982.1,11.20655463]
[1772808574296,0.25219,1982.8,1982.1,11.20655463]
[1772808574491,0.25224,1982.4,1982.1,0.00514901]
[1772808574695,0.25224,1982.4,1982.1,11.20655463]
[1772808574899,10.29564722,1982.9,1982.1,11.20655463]
[1772808575597,10.29564722,1983.2,1982.1,11.20655463]
[1772808576193,0.25214,1983.2,1982.1,11.20655463]
[1772808576394,0.25214,1983.2,1982.3,11.20140562]
[1772808576600,0.25218,1982.8,1982.3,11.20140562]
[1772808576799,0.25218,1982.8,1982.2,14.855]
[1772808577002,0.25218,1982.8,1982.3,11.20140562]
[1772808577501,10.29564722,1983.6,1982.8,11.20140562]
[1772808577797,10.29564722,1983.6,1982.6,11.20140562]
[1772808577998,0.00602734,1983.7,1982.6,11.20140562]
[1772808578599,0.25213,1983.2,1982.6,11.20140562]
[1772808579097,10.29564722,1983.4,1982.5,14.856]
[1772808579098,0.25217,1982.9,1982.5,14.856]
[1772808579294,0.25217,1982.9,1982.5,26.05740562]
[1772808579494,0.25217,1982.9,1982.6,11.20140562]
[1772808579902,10.54781722,1982.9,1982.5,14.856]
[1772808580201,10.54781722,1982.9,1982.1,0.00514901]
[1772808580202,0.25222,1982.5,1982.1,0.00514901]
[1772808580705,2.74669118,1983.4,1981.6,11.20140562]
[1772808580706,0.25227,1982.1,1981.6,11.20140562]
[1772808581300,10.54785722,1982.6,1981.6,11.20140562]